Cogmind - Beta 15 @@@ ROGUE MODE // 2025.05.06 @ 21:06:00 Player: PTS Result: Destroyed by X7-7U5(R) with Subdweller Beam Cannon Performance ------------- Evolutions (0) 0 Regions Visited (3) 600 Robots Destroyed (21) 105 Value Destroyed (642) 642 Prototype IDs (0) 0 Alien Tech Used (0) 0 Bonus (0) 0 TOTAL SCORE: 1347 Bonus ------- None Cogmind --------- Core Integrity 0/250 Matter 299/300 Energy 199/200 System Corruption 0% Temperature Cool (9) Movement Rolling (110) Location -10/Subcaves Parts ------- > --- POWER (1) -------- Subdweller Power Source > --- PROPULSION (2) --- Subdweller Monowheel > --- UTILITY (2) ------ Sensor Array Signal Interpreter > --- WEAPON (2) ------- (None) > --- INVENTORY (5) ---- ECM Suite Scrap Shield Peak State ------------ > --- POWER ------------ Subdweller Power Source > --- PROPULSION ------- Aluminum Leg Subdweller Monowheel > --- UTILITY ---------- Sensor Array Signal Interpreter > --- WEAPON ----------- Heavy Battle Rifle Makeshift Sword > --- INVENTORY -------- Aluminum Leg ECM Suite Scrap Shield Grenade Launcher [Rating: 15] Favorites ----------- Power Subdweller Power Source Engine Subdweller Power Source Propulsion Aluminum Leg Leg Aluminum Leg Wheel Wheel Utility Signal Interpreter Device Sensor Array Processor Signal Interpreter Protection Light Armor Plating Weapon Heavy Battle Rifle Energy Gun Particle Gun Ballistic Gun Heavy Battle Rifle Launcher Grenade Launcher Special Weapon Mining Laser Slashing Weapon Makeshift Sword Build | -11 -10 -10 -10 ------- Run | Yrd Mat Min Sub Slots Evolved . | . . . . Power . | . . . . Propulsion . | . . . . Utility . | . . . . Weapon . | . . . . Parts Attached 26 | 8 5 5 8 Power 6 | 1 1 1 3 Engine 6 | 1 1 1 3 Core . | . . . . Reactor . | . . . . Propulsion 6 | 2 1 2 1 Treads . | . . . . Leg 2 | . . 2 . Wheel 4 | 2 1 . 1 Hover . | . . . . Flight . | . . . . Utility 5 | 2 2 . 1 Device 3 | 2 1 . . Storage . | . . . . Processor 1 | . 1 . . Hackware . | . . . . Protection 1 | . . . 1 Artifact . | . . . . Weapon 9 | 3 1 2 3 Energy Gun 3 | 1 1 1 . Energy Cannon . | . . . . Ballistic Gun 3 | 1 . . 2 Ballistic Cannon . | . . . . Launcher 1 | . . 1 . Special Weapon 1 | 1 . . . Impact Weapon . | . . . . Slashing Weapon 1 | . . . 1 Piercing Weapon . | . . . . Special Melee Weapon . | . . . . Unidentified Prototypes . | . . . . Parts Lost 4 | . . . 4 Power 1 | . . . 1 Propulsion . | . . . . Utility . | . . . . Weapon 3 | . . . 3 Highest Loss Streak 3 | . . . 3 To Critical Strikes . | . . . . Average Backups 3 | 1 4 4 3 Power . | . 1 . . Propulsion . | . 1 1 . Utility 1 | . 1 2 2 Weapon 1 | . 1 1 1 Tool/Special . | . . . . Unused Backups 8 | . 1 1 6 Power 2 | . 1 1 . Propulsion 1 | . . . 1 Utility 4 | . . . 4 Weapon 1 | . . . 1 Tool/Special . | . . . . Average Slot Usage (%) 98 | . 100 100 98 Engine 13 | . 14 14 13 Leg 19 | . . 14 25 Wheel 8 | . 28 13 1 Device 13 | . 15 14 13 Processor 13 | . 12 14 14 Energy Gun 6 | . 8 14 4 Ballistic Gun 10 | . 14 . 13 Launcher 2 | . . 11 . Special Weapon 1 | . 5 2 . Slashing Weapon 6 | . . . 9 Peak Build Rating 15 | 9 9 8 15 Average Rating 10 | 4 7 7 12 On Entrance 6 | . 9 7 8 Naked Turns . | . . . . Heaviest Build 15 | 8 10 12 15 Greatest Support 26 | 26 26 20 20 Greatest Overweight (x) 1 | . . 1 . Average Overweight (x) . | . . . . Largest Inventory Capacity 5 | 5 5 5 5 Average Capacity 5 | 5 5 5 5 Most Carried 5 | 5 5 5 5 Average Carried 4 | 2 4 4 4 Final Capacity 5 | 5 5 5 5 Final Carried 5 | 5 5 5 3 Class Distribution -------------------- 72% | Mutant 27% | Scavenger-Mutant Dominant Class ---------------- Mutant | -10/Materials Scavenger-Mutant | -10/Mines Mutant | -10/Subcaves Resources | -11 -10 -10 -10 ----------- Run | Yrd Mat Min Sub Matter Collected 732 | 269 44 205 214 Remotely . | . . . . Salvage Created 773 | 111 115 195 352 Parts 43 | 7 7 10 19 Haulers Intercepted 1 | . 1 . . Recyclers Shooed 1 | . . 1 . Parts Field Recycled . | . . . . Retrieved Matter . | . . . . Parts Self-Destructed 8 | . . . 8 Prevented . | . . . . Kills | -11 -10 -10 -10 ------- Run | Yrd Mat Min Sub Combat Hostiles Destroyed 15 | . 1 5 9 Melee 2 | . . . 2 Guns 9 | . 1 1 7 AOE 4 | . . 4 . Classes Destroyed 7 | 2 3 . 2 Worker 1 | . 1 . . Tunneler 3 | 3 . . . Hauler 1 | . 1 . . Recycler 1 | 1 . . . Grunt 7 | . 1 5 1 Sentry 1 | . . . 1 Subdweller 7 | . . . 7 Best Kill Streak 4 | 4 1 4 2 Combat Bots Only 4 | . 1 4 2 Max Kills in Single Turn 2 | 1 1 2 1 Gunslinging . | . . . . Exploded 2 | . . 2 . Melee 1 | . . . 1 Uniques/NPCs Destroyed . | . . . . Combat | -11 -10 -10 -10 -------- Run | Yrd Mat Min Sub Hostile Shots Fired 68 | . 6 12 50 Missed 21 | . 2 3 16 Hits 47 | . 4 9 34 Projectile 47 | . 4 9 34 Critical Strikes 3 | . . . 3 Damage Taken 912 | . 45 135 732 Core 265 | . 33 17 215 Absorbed by Shields . | . . . . Core Remaining (%) 100 | 100 . . . Volleys Fired 66 | 8 18 13 27 Largest 2 | 2 2 1 2 Hottest 120 | 60 120 65 98 Shots Fired 110 | 16 36 13 45 Gun 102 | 16 34 9 43 Cannon . | . . . . Launcher 6 | . . 4 2 Special 2 | . 2 . . Kinetic 51 | 8 18 . 25 Thermal 30 | 8 2 2 18 Explosive 6 | . . 4 2 Electromagnetic 23 | . 16 7 . Robot Hit Streak 14 | 9 10 6 14 Robot Miss Streak 5 | 2 5 1 1 Penetration Max . | . . . . Secondary Targets . | . . . . Shots Hit Robots 85 | 11 23 9 42 Core Hits 40 | 5 5 16 14 Critical Kills . | . . . . Critical Parts Destroyed 1 | . 1 . . Critical Strikes 4 | . 1 . 3 Burn 2 | . . . 2 Destroy 2 | . 1 . 1 Melee Attacks 10 | . . . 10 Impact . | . . . . Slashing 10 | . . . 10 Piercing . | . . . . Sneak Attacks . | . . . . Combat Hostiles . | . . . . Follow-up Attacks . | . . . . Damage Inflicted 1721 | 132 300 338 951 Guns 1177 | 132 300 107 638 Cannons . | . . . . Explosions 328 | . . 231 97 Melee 216 | . . . 216 Ramming . | . . . . Kinetic 623 | 75 184 . 364 Thermal 357 | 57 . 26 274 Explosive 328 | . . 231 97 Electromagnetic 197 | . 116 81 . Impact . | . . . . Slashing 216 | . . . 216 Piercing . | . . . . Highest Corruption . | . . . . Average Corruption . | . . . . Corruption Purged . | . . . . Corruption Blocked . | . . . . Overload Shots . | . . . . Overflow Damage . | . . . . Projectiles . | . . . . Explosions . | . . . . Melee . | . . . . Knockbacks . | . . . . Impact . | . . . . Kinetic . | . . . . Secondary . | . . . . Self-Inflicted Damage . | . . . . Shots . | . . . . Rammed . | . . . . Targets Rammed . | . . . . Kicked . | . . . . Crushed . | . . . . Highest Temperature 36 | . 24 36 . Average Temperature 17 | . 13 21 . Received Heat Transfer 261 | . 24 78 159 Siege Activations . | . . . . Martial Activations . | . . . . Shielding Activations . | . . . . Robots Disrupted . | . . . . Combat Hostiles . | . . . . Robots Corrupted . | . . . . Combat Hostiles . | . . . . Parts Fried 1 | . 1 . . Impact Corruptions . | . . . . Robots Melted . | . . . . Combat Hostiles . | . . . . Parts Melted . | . . . . Heat Transferred 976 | 125 . 74 777 Parts Sabotaged . | . . . . Parts Stolen . | . . . . Parts Stripped . | . . . . Power Chain Reactions . | . . . . Alert | -11 -10 -10 -10 ------- Run | Yrd Mat Min Sub Maximum Alert Level . | . . . . Low Security (%) 100 | 100 100 100 . Level 1 . | . . . . Level 2 . | . . . . Level 3 . | . . . . Level 4 . | . . . . Level 5 . | . . . . High Security . | . . . . Max Security . | . . . . Peak Influence 126 | 10 30 126 . Initial 1 | . . 1 . Average 27 | 2 4 58 . Influence Increases 300 | 20 74 166 40 Destroy 0b10 Robot/C 160 | . 20 100 40 Destroy 0b10 Robot/NC 30 | 20 10 . . Destroy Leader 22 | . 12 10 . Successful Hack 2 | . 2 . . Disable Machine 15 | . 15 . . Destroy Structure 26 | . . 26 . Partial Spotted 15 | . 15 . . Lose Combat Pursuer 30 | . . 30 . Influence Decreases 300 | 20 69 135 76 Entered New Map 24 | . . 4 20 Time Decay 270 | 20 69 131 50 Lost Part 6 | . . . 6 Squads Dispatched 3 | . 3 . . Investigation 1 | . 1 . . Extermination . | . . . . Reinforcement 2 | . 2 . . Assault . | . . . . Garrison . | . . . . Intercept . | . . . . Searches Triggered . | . . . . Construction Impeded . | . . . . Haulers Reinforced . | . . . . Active Scanning Responses . | . . . . Cargo Convoy Interrupts . | . . . . Stealth | -11 -10 -10 -10 --------- Run | Yrd Mat Min Sub Distress Signals 1 | . 1 . . Communications Jammed . | . . . . Distress Signals . | . . . . Times Spotted 18 | . 5 3 10 Peak Tracking Total 2 | . 2 2 2 Tactical Retreats 1 | . . 1 . Traps | -11 -10 -10 -10 ------- Run | Yrd Mat Min Sub Traps Triggered 1 | . 1 . . Indirectly . | . . . . Trap Hack Attempts . | . . . . Triggered . | . . . . Disarmed . | . . . . Reprogrammed . | . . . . Reused . | . . . . Traps Extracted . | . . . . Installed . | . . . . Triggered . | . . . . Machines | -11 -10 -10 -10 ---------- Run | Yrd Mat Min Sub Machines Disabled 1 | . 1 . . Max in Single Turn 1 | . 1 . . Machines Repaired . | . . . . Machines Dismantled . | . . . . Machines Sabotaged . | . . . . Overloaded Fab Kills . | . . . . Hacking | -11 -10 -10 -10 --------- Run | Yrd Mat Min Sub Machines Accessed 3 | . 2 . 1 Terminals 1 | . 1 . . Fabricators . | . . . . Repair Stations . | . . . . Recycling Units 1 | . 1 . . Scanalyzers . | . . . . Garrison Access . | . . . . Total Hacks 10 | . 6 . 4 Successful 7 | . 3 . 4 Failed 3 | . 3 . . Catastrophic 1 | . 1 . . Database Lockouts . | . . . . Manual 7 | . 1 . 6 Terminals 4 | . 4 . . Fabricators . | . . . . Repair Stations . | . . . . Recycling Units 2 | . 2 . . Scanalyzers . | . . . . Garrison Access . | . . . . Terminal Hacks 7 | . 3 . 4 Record 5 | . 1 . 4 Terminal Index 1 | . 1 . . Alert Level 1 | . 1 . . Fabricator Hacks . | . . . . Repair Station Hacks . | . . . . Recycling Unit Hacks . | . . . . Scanalyzer . | . . . . Garrison Access Hacks . | . . . . Unauthorized Hacks . | . . . . Terminals . | . . . . Fabricators . | . . . . Repair Stations . | . . . . Recycling Units . | . . . . Scanalyzers . | . . . . Garrison Access . | . . . . Data Cores Recovered . | . . . . Used . | . . . . Hacking Detections 2 | . 2 . . Full Trace Events 1 | . 1 . . Feedback Events . | . . . . Feedback Blocked . | . . . . Robot Schematics Acquired . | . . . . Robots Built . | . . . . Authchips . | . . . . Time . | . . . . Total Robot Build Rating . | . . . . Part Schematics Acquired . | . . . . Parts Built . | . . . . Authchips . | . . . . Time . | . . . . Total Part Build Rating . | . . . . Parts Repaired . | . . . . Time . | . . . . Parts Recycled . | . . . . Recycled Matter . | . . . . Retrieved Matter . | . . . . Retrieved Components . | . . . . Parts Scanalyzed . | . . . . Part Schematics Acquired . | . . . . Parts Damaged . | . . . . Bothacking | -11 -10 -10 -10 ------------ Run | Yrd Mat Min Sub Used RIF Installer . | . . . . Robots Hacked . | . . . . Non-combat . | . . . . Combat . | . . . . Robot Hacks Applied . | . . . . Relay Couplers Released . | . . . . Fabnet Peak Effective % . | . . . . Robots Rewired . | . . . . Allies Hacked . | . . . . Hacks Repelled . | . . . . Allies | -11 -10 -10 -10 -------- Run | Yrd Mat Min Sub Total Allies . | . . . . Largest Group . | . . . . Highest-Rated Group . | . . . . Highest-Rated Ally . | . . . . Total Orders . | . . . . Ally Attacks . | . . . . Total Damage . | . . . . Kills . | . . . . Allies Corrupted . | . . . . Allies Melted . | . . . . Intel | -11 -10 -10 -10 ------- Run | Yrd Mat Min Sub Active Infowar (turns) 1758 | 18 308 308 1124 Sensors 1716 | . 284 308 1124 Terrain 37 | 13 24 . . Seismic 41 | 18 23 . . Robot Analysis Total . | . . . . Derelict Logs Recovered 1 | . . 1 . Drone Launches . | . . . . Drone Recoveries . | . . . . Exploration | -11 -10 -10 -10 ------------- Run | Yrd Mat Min Sub Turns Passed 1913 | 96 315 308 1194 Spaces Moved 1354 | 58 270 229 797 Core 5 | 5 . . . Treads . | . . . . Legs 840 | . . 97 743 Wheels 509 | 53 270 132 54 Hover . | . . . . Flight . | . . . . Fastest Speed 50 | 50 80 80 110 Average Speed 106 | 86 83 97 119 Slowest Speed 190 | 90 90 190 120 Overloaded Moves . | . . . . Propulsion Burnouts . | . . . . Robots Hopped . | . . . . Potential Cave-ins . | . . . . Cave-ins Triggered . | . . . . Exploration Rate (%) 33 | 4 33 46 50 Regions Visited 3 Branch Regions 2 Pre-discovered Areas 1 | . . . 1 Known Exits Taken 2 | . 1 1 . Unknown Exits Taken 1 | 1 . . . Scrap Searched 5 | . . 1 4 Spaces Dug . | . . . . Terrain Destroyed 38 | . . 27 11 Melee . | . . . . Projectile . | . . . . AOE 38 | . . 27 11 Terrain Rammed . | . . . . Walls Destroyed . | . . . . Machines Disabled . | . . . . Actions | -11 -10 -10 -10 --------- Run | Yrd Mat Min Sub Total 1695 | 87 319 301 988 Wait 186 | . 21 46 119 Move 1351 | 57 269 228 797 Hop . | . . . . Pick Up 24 | 13 2 3 6 Fast Attach 7 | . 2 1 4 Attach 9 | 8 . . 1 Detach . | . . . . Swap 18 | 1 3 5 9 Drop 24 | . 4 5 15 Fire 66 | 8 18 13 27 Melee 10 | . . . 10 Ram . | . . . . Kick . | . . . . Crush . | . . . . Escape Stasis . | . . . . Rewire . | . . . . Trap . | . . . . Miscellaneous . | . . . . Route ------- -11/Scrapyard -10/Materials -10/Mines -10/Subcaves (discovered 3 exits: *Mat x2 / Rec) History --------- Turn | Location | Event 8 | -11/Scrapyard | Released all parts (1) 22 | -11/Scrapyard | Discovered new exit (range 16) 97 | -11/Scrapyard | Entered Materials 313 | -10/Materials | Build established: Mutant 325 | -10/Materials | Discovered new exit (range 6) 408 | -10/Materials | Identified exit to Mines 412 | -10/Materials | Entered Mines 458 | -10/Mines | YI-UF0 nonchalantly dropped a Grenade Launcher on the ground 555 | -10/Mines | Assisted by bots powering up and referring to "LRC-V3" 662 | -10/Mines | Identified exit to Subcaves 720 | -10/Mines | Entered Subcaves 849 | -10/Subcaves | Build established: Scavenger-Mutant 936 | -10/Subcaves | Discovered new exit (range 13) 973 | -10/Subcaves | Disturbed a concealed Subdweller 1005 | -10/Subcaves | Identified exit to Materials 1183 | -10/Subcaves | Learned location of Zion (-6) 1183 | -10/Subcaves | Met a Zionite searching for "candidates" 1329 | -10/Subcaves | Visited Clippyterm 1332 | -10/Subcaves | Identified exit to Recycling 1332 | -10/Subcaves | Learned Research security intel 1368 | -10/Subcaves | Build established: Mutant 1593 | -10/Subcaves | Discovered exit to Materials (range 12) 1641 | -10/Subcaves | A swath of the cavern ceiling suddenly collapsed 1873 | -10/Subcaves | Core integrity fell below 50% 1890 | -10/Subcaves | Core integrity fell below 20% 1914 | -10/Subcaves | Destroyed by X7-7U5(R) with Subdweller Beam Cannon Last Messages --------------- for is frequently seen in Scraptown. 01425_ Connecting with Clippyterm... 01593_ EXIT=FOUND: MATERIALS 01618_ NH-Y73(u) tweaks Twisted Machinery. A swath of the cavern ceiling suddenly collapses. 01720_ Acquired 6 matter. 01770_ YQ-NJF(R) destroyed. 01772_ Acquired 20 matter. 01813_ GN-C2Q(R) destroyed. 01815_ Acquired 3 matter. 01817_ Acquired Sub. Monowheel. 01820_ Dropped Aluminum Leg. 01821_ Acquired 10 matter. 01865_ E0-L2O(R) suffers critical hit (Destroy). 01874_ Hvy. Battle Rifle destroyed. 01887_ Grenade Launcher destroyed. 01912_ E0-L2O(R) destroyed. 01914_ Acquired 22 matter. 01914_ Mak. Sword destroyed. Map ----- +----------------------------------------------------+ | ????????????????????#" """ ##?????????????? | | ????????????????????## """" #?????????????? | | ?????????????????????###"" ###== #?????????????? | | ???????????????????????###"#?##%! ##?????????????? | | ?????????????????????????###??#! #??????????????? | | ??????#???????????###????????## ##??????????????? | | ????? ??????### #????????# #??????????????? | | ????? ???# #????????## ##??????????????? | | ???????# ## ##??????### ##??????????????? | | ????????# ###???## #??????????????? | | ?????????# " # ###?# ##??????????????? | | ???????#" " ## ##### #??????????????? | | ???????"""" "##???## #?# ##??????????????? | | ????????? "?????????# #?# #???????????????? | | ?????????????????#### ### ##??????????????? | | ??????????????#### #??????????????? | | ?????????????## #??????????????? | | ?????????????# ##??????????????? | | ?????????????## #???????????????? | | ??????????????# ######## #???????????????? | | ??????????????## ##??????## #???????????????? | | ???????????????## ##???????## #???????????????? | | ???????????????## ####?????# ##???????????????? | | ???????????????# #####;####????????????????? | | ?????????????# ## ## ##???????????????????? | | ????????????# ?# @ ##??????????????????? | | ???????????? ??## R #??????????????????? | | ??????????? #???# ##### #??????????????????? | | ?????????? #????# #???## ##??????????????????? | | ???????? ?????## #?????##???????????????????? | | ??????? %???????## #??????????????????????????? | | ??????? ?????????###??????????????????????????? | | ??????? ###??????????????????????????????????????? | | ?????????????????????????????????????????????????? | | ?????????????????????????????????????????????????? | | ?????????????????????????????????????????????????? | | ?????????????????????????????????????????????????? | | ?????????????????????????????????????????????????? | | ?????????????????????????????????????????????????? | | ?????????????????????????????????????????????????? | | ?????????????????????????????????????????????????? | | ?????????????????????????????????????????????????? | | ?????????????????????????????????????????????????? | | ?????????????????????????????????????????????????? | | ?????????????????????????????????????????????????? | | ?????????????????????????????????????????????????? | | ?????????????????????????????????????????????????? | | ?????????????????????????????????????????????????? | | ?????????????????????????????????????????????????? | | ?????????????????????????????????????????????????? | +----------------------------------------------------+ Best States ------------- Heat Dissipation 25 Energy Generation 15 Energy Capacity 265 Matter Stores 300 Matter Capacity 300 Sight Range 16 Robot Scan Range 14 Terrain Scan Range 16 Terrain Scan Density 10 Armor Coverage 150 Evasion (%) 55 Item Schematics ----------------- None Robot Schematics ------------------ None Fabricated ------------ Nothing Repaired ---------- Nothing Alien Tech Used ----------------- None Achievements -------------- None Challenges ------------ None Game ------ Seed LightVariableRipper Manual? 0 Play Time 00:25:05 Cumulative 20.7 hours Start 2025.05.06 @ 12:43:41 End 2025.05.06 @ 21:06:00 Sessions 1 Manual Loads 0 Difficulty Rogue Special Mode None Game No. 36 Rogue 36 Adventurer 0 Explorer 0 Win Type - Total 0 Types 0/0/0/0/0/0/0/0/0/0 Lore% 12 Gallery% 23 Achievement% 24 Wizard Run 0 Options --------- Layout 1 ASCII 0 Keyboard 0 Movement Mouse Keybinds 0 Fullscreen 1 Font 24/Smallcaps Map View 50x35 Zoom Use 0% Tactical HUD 1 Map Filters NONE Filters NONE Steam 1 RUN: 1de02cb2-89f6-4515-93aa-e634034ba55e